bitfinex-derivatives/quotes_BTCF0:USTF0_20250330
["timestamp","ask_amount","ask_price","bid_price","bid_amount"]
[1743323749616,0.2363025,83341.0,83340.0,0.04854409]
[1743323751620,0.2694025,83341.0,83340.0,0.04854409]
[1743323752021,0.2998025,83341.0,83340.0,0.04853737]
[1743323752915,0.41979218,83341.0,83340.0,0.04853737]
[1743323754213,0.41979218,83341.0,83340.0,0.03237998]
[1743323756626,0.78059218,83341.0,83340.0,0.03237998]
[1743323761028,0.60273218,83341.0,83340.0,0.03237998]
[1743323761327,0.5971425,83341.0,83340.0,0.03237998]
[1743323761928,0.5971425,83341.0,83340.0,0.04757822]
[1743323762131,0.5971425,83341.0,83340.0,0.04817822]
[1743323762324,0.4827425,83341.0,83340.0,0.04817822]
[1743323762530,0.5971825,83341.0,83340.0,0.06472762]
[1743323763125,0.5971825,83341.0,83340.0,0.06412762]
[1743323763825,0.5971825,83341.0,83340.0,0.06411845]
[1743323765031,0.5971825,83341.0,83340.0,0.06382681]
[1743323765632,0.5971825,83341.0,83340.0,0.06381753]
[1743323766133,0.5971825,83341.0,83340.0,0.06449753]
[1743323766832,0.2363825,83341.0,83340.0,0.06449753]
[1743323767734,0.2695825,83341.0,83340.0,0.06449753]
[1743323767928,0.38957218,83341.0,83340.0,0.06449753]
[1743323769035,0.38957218,83341.0,83340.0,0.06381753]
[1743323769437,0.75037218,83341.0,83340.0,0.06381753]
[1743323771625,0.75037218,83341.0,83340.0,0.04522754]
[1743323772739,0.75037218,83341.0,83340.0,0.02772754]
[1743323772941,0.75037218,83341.0,83340.0,0.01022754]
[1743323773142,0.1200239,83340.0,83339.0,0.03018]
[1743323773437,0.15118391,83340.0,83339.0,0.03018]
[1743323773735,0.18208391,83340.0,83339.0,0.01268]
[1743323774040,0.1200297,83336.0,83335.0,0.0317]
[1743323774239,0.1209497,83336.0,83335.0,0.0317]
[1743323774941,0.1820497,83336.0,83335.0,0.0317]
[1743323777843,0.1200326,83334.0,83333.0,0.0319]
[1743323778044,0.1200326,83334.0,83333.0,0.03282]
[1743323778045,0.1209526,83334.0,83333.0,0.03282]
[1743323778548,0.1209526,83334.0,83333.0,0.06382]
[1743323779042,0.1209526,83334.0,83332.0,0.00017998]
[1743323779043,0.12972954,83334.0,83332.0,0.00017998]
[1743323779239,0.0600194,83330.0,83315.0,0.0941]
[1743323779441,0.4808542,83319.0,83318.0,0.0006]
[1743323779637,0.59653421,83319.0,83318.0,0.0006]
[1743323779946,0.71654765,83319.0,83318.0,0.0006]
[1743323780339,0.78134765,83319.0,83318.0,0.0006]
[1743323780540,0.78134765,83319.0,83318.0,0.0036]
[1743323782042,0.78134765,83319.0,83318.0,0.0066]
[1743323783649,0.78134765,83319.0,83318.0,0.006]
[1743323790542,0.42054765,83319.0,83318.0,0.006]
[1743323790936,0.78134765,83319.0,83318.0,0.006]
[1743323791141,0.78134765,83319.0,83318.0,0.003]
[1743323791448,0.42054765,83319.0,83318.0,0.003]
[1743323791649,0.12006,83315.0,83314.0,0.0311]
[1743323791945,0.12126001,83315.0,83314.0,0.0311]
[1743323792353,0.24128137,83315.0,83314.0,0.0311]
[1743323792538,0.30238137,83315.0,83314.0,0.0311]
[1743323792743,0.30238137,83315.0,83314.0,0.0331]
[1743323793053,0.31418882,83315.0,83314.0,0.0331]
[1743323799364,0.1200643,83312.0,83311.0,0.0304]
[1743323799549,0.1200686,83309.0,83308.0,0.031]
[1743323799857,0.1200931,83292.0,83291.0,0.36128024]
[1743323800056,0.12129311,83292.0,83291.0,0.36196024]
[1743323800654,0.13231411,83292.0,83291.0,0.36196024]
[1743323801256,0.13031411,83292.0,83291.0,0.36196024]
[1743323802049,0.13031411,83292.0,83291.0,0.36796024]
[1743323802255,0.12731411,83292.0,83291.0,0.36796024]
[1743323802849,0.12731411,83292.0,83291.0,0.37396024]
[1743323803156,0.12731411,83292.0,83291.0,0.40456024]
[1743323804056,0.1361487,83292.0,83291.0,0.40456024]
[1743323804657,0.1361487,83292.0,83291.0,0.43606024]
[1743323809054,0.1374687,83292.0,83291.0,0.43606024]
[1743323810550,0.1374687,83292.0,83291.0,0.06926024]
[1743323810755,0.1374687,83292.0,83291.0,0.43306024]
[1743323811164,0.1244457,83294.0,83291.0,0.43306024]
[1743323811165,0.17957848,83305.0,83291.0,0.58306024]
[1743323811355,0.17957848,83305.0,83304.0,0.4808758]
[1743323811558,0.18041848,83305.0,83304.0,0.4815158]
[1743323811865,0.18041848,83305.0,83304.0,0.5768158]
[1743323812668,0.30149288,83305.0,83304.0,0.5768158]
[1743323813659,0.18141848,83305.0,83304.0,0.5768158]
[1743323813961,0.30149288,83305.0,83304.0,0.5768158]
[1743323814563,0.30249288,83305.0,83304.0,0.5768158]
[1743323815161,0.1229144,83305.0,83304.0,0.5768158]
[1743323816462,0.00284,83305.0,83304.0,0.5768158]
[1743323817665,0.00184,83305.0,83304.0,0.5768158]
[1743323817971,0.0600293,83316.0,83312.0,0.1200643]
[1743323818158,0.00090009,83313.0,83312.0,0.4815043]
[1743323818562,0.00090009,83313.0,83312.0,2.0446043]
[1743323818868,0.00018009,83313.0,83312.0,2.0446043]
[1743323819265,0.12024289,83313.0,83312.0,2.0446043]
[1743323820263,0.12224289,83313.0,83312.0,2.0446043]
[1743323820463,0.12224289,83313.0,83312.0,1.92454]
[1743323820660,0.12424289,83313.0,83312.0,1.92454]
[1743323820867,0.12424289,83313.0,83312.0,0.42454]
[1743323821068,0.12388289,83313.0,83312.0,0.42454]
[1743323821270,0.12188289,83313.0,83312.0,0.42454]
[1743323821471,0.15548289,83313.0,83312.0,0.42454]
[1743323822470,0.15548289,83313.0,83312.0,0.06374]
[1743323822772,0.15548289,83313.0,83312.0,0.42454]
[1743323823970,0.15548289,83313.0,83312.0,0.06374]
[1743323824174,0.15548289,83313.0,83312.0,0.42454]
[1743323825472,0.15548289,83313.0,83312.0,0.06374]
[1743323825672,0.15548289,83313.0,83312.0,0.42454]
[1743323827683,0.15548289,83313.0,83312.0,0.5757043]
[1743323828382,0.15548289,83313.0,83312.0,0.45564]
[1743323829087,0.15548289,83313.0,83312.0,0.42284]
[1743323829881,0.15548289,83313.0,83312.0,0.06204]
[1743323830187,0.15548289,83313.0,83312.0,0.42284]
[1743323830792,0.15548289,83313.0,83312.0,0.45434]
[1743323831996,0.15548289,83313.0,83312.0,0.42284]
[1743323832294,0.15548289,83313.0,83312.0,0.39174]
[1743323832488,0.18648289,83313.0,83312.0,0.39174]
[1743323833194,0.15548289,83313.0,83312.0,0.39174]
[1743323835696,0.18568289,83313.0,83312.0,0.39174]
[1743323836782,0.18568289,83313.0,83312.0,1.89174]
[1743323836981,0.18504289,83313.0,83312.0,1.89174]
[1743323837587,0.18504289,83313.0,83312.0,1.53094]
[1743323837790,0.18504289,83313.0,83312.0,0.00064]
[1743323837992,0.18504289,83313.0,83293.0,0.41846756]
[1743323837993,0.1200715,83307.0,83306.0,0.3608]
[1743323838198,0.1207915,83307.0,83306.0,0.36144]
[1743323838492,0.1207915,83307.0,83306.0,1.86144]
[1743323838683,0.1200715,83307.0,83306.0,1.86152]
[1743323838882,0.1845715,83307.0,83306.0,1.86152]
[1743323839099,0.1845715,83307.0,83306.0,1.9815929]
[1743323839290,0.0645,83307.0,83306.0,1.9815929]
[1743323839491,0.0645,83307.0,83306.0,2.0128929]
[1743323839690,0.0645,83307.0,83306.0,2.0745929]
[1743323841592,0.1845715,83307.0,83306.0,2.0745929]
[1743323842201,0.1200663,83311.0,83310.0,0.0600329]
[1743323842493,0.1200663,83311.0,83310.0,0.0606729]
[1743323842801,0.1200663,83311.0,83310.0,0.1228729]
[1743323843694,0.1210663,83311.0,83310.0,0.4836729]
[1743323844499,0.17957848,83321.0,83318.0,0.0600278]
[1743323844693,0.18021848,83321.0,83320.0,0.4808528]
[1743323845001,0.18021848,83321.0,83320.0,0.4814928]
[1743323845301,0.18021848,83321.0,83320.0,0.5450928]
[1743323845498,0.33036978,83321.0,83320.0,0.5450928]
[1743323846294,0.33136978,83321.0,83320.0,0.5450928]
[1743323847101,0.1527913,83321.0,83320.0,0.5450928]
[1743323848304,0.03274,83321.0,83320.0,0.5450928]
[1743323848491,0.0321,83321.0,83320.0,0.5450928]
[1743323849300,0.0321,83321.0,83320.0,2.0450928]
[1743323851902,0.58587,83321.0,83320.0,2.0450928]
[1743323852097,0.58659,83321.0,83320.0,2.0450928]
[1743323854698,0.55649,83321.0,83320.0,2.0450928]
[1743323858801,0.6765413,83321.0,83320.0,2.0450928]
[1743323859010,0.7091413,83321.0,83320.0,2.0450928]
[1743323860410,0.58909,83321.0,83320.0,2.0450928]
[1743323863708,0.58909,83321.0,83320.0,2.1608128]
[1743323868713,0.58909,83321.0,83320.0,2.1299128]
[1743323869213,0.62019,83321.0,83320.0,2.0141928]
[1743323869606,0.7401613,83321.0,83320.0,1.9814928]
[1743323871214,0.62011,83321.0,83320.0,1.9814928]
[1743323872210,0.62011,83321.0,83320.0,1.6206928]
[1743323872410,0.62011,83321.0,83320.0,1.9814928]
[1743323872612,0.7401613,83321.0,83320.0,1.9814928]
[1743323872921,0.62011,83321.0,83320.0,1.9814928]
[1743323874805,0.62011,83321.0,83320.0,1.6206928]
[1743323875019,0.62011,83321.0,83320.0,1.9814928]
[1743323876914,0.7401613,83321.0,83320.0,1.9814928]
[1743323880023,0.7401613,83321.0,83320.0,2.0129928]
[1743323884221,0.7401613,83321.0,83320.0,2.0457928]
[1743323888430,0.7401613,83321.0,83320.0,1.6849928]
[1743323890739,0.7401613,83321.0,83320.0,2.0457928]
[1743323890926,0.7401613,83321.0,83320.0,1.6849928]
[1743323891133,0.7401613,83321.0,83320.0,2.0457928]
[1743323891925,0.7401613,83321.0,83320.0,2.0765928]
[1743323894833,0.7090613,83321.0,83320.0,2.0765928]
[1743323895828,0.7090613,83321.0,83320.0,1.73108184]
[1743323896128,0.7090613,83321.0,83320.0,2.09188184]
[1743323896728,0.58901,83321.0,83320.0,2.09188184]
[1743323896933,0.58837,83321.0,83320.0,2.09188184]
[1743323897130,0.58837,83321.0,83320.0,2.0920986]
[1743323897727,0.7084213,83321.0,83320.0,2.0920986]
[1743323897937,0.7084213,83321.0,83320.0,2.0612986]
[1743323897938,0.7091013,83321.0,83320.0,2.0612986]
[1743323898133,0.7091013,83321.0,83320.0,2.0284986]
[1743323898835,0.7091013,83321.0,83320.0,2.0129928]
[1743323899841,0.7091013,83321.0,83320.0,2.02829972]
[1743323900831,0.7091013,83321.0,83320.0,1.6521928]
[1743323901031,0.7091013,83321.0,83320.0,2.0284266]
[1743323901630,0.7091013,83321.0,83320.0,2.0595266]
[1743323902639,0.7091013,83321.0,83320.0,2.05977336]
[1743323902842,0.7091013,83321.0,83320.0,1.69897336]
[1743323903027,0.7091013,83321.0,83320.0,2.05977336]
[1743323904833,0.7091013,83321.0,83320.0,1.69897336]
[1743323905027,0.7091013,83321.0,83320.0,2.05977336]
[1743323905739,0.7091013,83321.0,83320.0,1.69897336]
[1743323906041,0.7091013,83321.0,83320.0,2.05977336]
[1743323906838,0.7418013,83321.0,83320.0,2.05977336]
[1743323907234,0.7408013,83321.0,83320.0,2.05977336]
[1743323907635,0.7408013,83321.0,83320.0,1.90862056]
[1743323907836,0.7418013,83321.0,83320.0,2.02867336]
[1743323908042,0.7418013,83321.0,83320.0,1.89294]
[1743323908343,0.7418013,83321.0,83320.0,2.0129928]
[1743323908744,0.7408013,83321.0,83320.0,2.0129928]
[1743323909643,0.7418013,83321.0,83320.0,2.0129928]
[1743323909844,0.7418013,83321.0,83320.0,1.6521928]
[1743323910045,0.7418013,83321.0,83320.0,2.0129928]
[1743323910545,0.7418013,83321.0,83320.0,0.4814928]
[1743323911543,0.7418013,83321.0,83320.0,0.5124928]
[1743323912943,0.7418013,83321.0,83320.0,0.1516928]
[1743323913243,0.7418013,83321.0,83320.0,0.5124928]
[1743323913433,0.7418013,83321.0,83320.0,2.0124928]
[1743323914843,0.7418013,83321.0,83320.0,2.02794606]
[1743323915243,0.7418013,83321.0,83320.0,2.0124928]
[1743323915444,0.7418013,83321.0,83320.0,2.02794553]
[1743323915744,0.7418013,83321.0,83320.0,1.66714553]
[1743323916044,0.7418013,83321.0,83320.0,1.89244]
[1743323916244,0.7418013,83321.0,83320.0,2.0124928]
[1743323916941,0.7418013,83321.0,83320.0,1.6516928]
[1743323917242,0.7418013,83321.0,83320.0,2.0124928]
[1743323917636,0.7418013,83321.0,83320.0,1.6516928]
[1743323918042,0.7418013,83321.0,83320.0,2.0124928]
[1743323918840,0.7418013,83321.0,83320.0,1.89244]
[1743323923850,0.7418013,83321.0,83320.0,1.53164]
[1743323924039,0.7418013,83321.0,83320.0,1.89244]
[1743323924236,0.7418013,83321.0,83320.0,1.53164]
[1743323924645,0.7418013,83321.0,83320.0,1.89244]
[1743323926744,0.7418013,83321.0,83320.0,1.53164]
[1743323926947,0.7418013,83321.0,83320.0,1.89244]
[1743323927753,0.7418013,83321.0,83320.0,1.53164]
[1743323927954,0.7418013,83321.0,83320.0,1.89244]
[1743323928249,0.7418013,83321.0,83320.0,1.53164]
[1743323928851,0.7418013,83321.0,83320.0,1.89244]
[1743323930251,0.7418013,83321.0,83320.0,1.53164]
[1743323930453,0.7418013,83321.0,83320.0,1.89244]
[1743323930941,0.7418013,83321.0,83320.0,1.92244]
[1743323931251,0.7418013,83321.0,83320.0,1.56164]
[1743323931552,0.7418013,83321.0,83320.0,1.92244]
[1743323931949,0.7418013,83321.0,83320.0,1.93774483]
[1743323932454,0.7418013,83321.0,83320.0,1.93774524]
[1743323932656,0.7418013,83321.0,83320.0,1.92244]
[1743323932855,0.7418013,83321.0,83320.0,1.56164]
[1743323933050,0.7418013,83321.0,83320.0,1.92244]
[1743323933353,0.7418013,83321.0,83320.0,1.57694531]
[1743323933554,0.7418013,83321.0,83320.0,1.93774531]
[1743323933751,0.7418013,83321.0,83320.0,1.57694531]
[1743323933947,0.7418013,83321.0,83320.0,1.56164]
[1743323934146,0.7418013,83321.0,83320.0,1.93775418]
[1743323935256,0.7418013,83321.0,83320.0,1.93775564]
[1743323935649,0.7418013,83321.0,83320.0,1.92244]
[1743323936547,0.7418013,83321.0,83320.0,1.56164]
[1743323936749,0.7418013,83321.0,83320.0,1.92244]
[1743323939057,0.7418013,83321.0,83320.0,1.56164]
[1743323939254,0.7418013,83321.0,83320.0,1.92244]
[1743323939648,0.7418013,83321.0,83320.0,1.56164]
[1743323939853,0.7418013,83321.0,83320.0,1.92244]
[1743323941856,0.7418013,83321.0,83320.0,1.56164]
[1743323942059,0.7418013,83321.0,83320.0,1.92244]
[1743323943755,0.7418013,83321.0,83320.0,1.56164]
[1743323944062,0.7418013,83321.0,83320.0,1.92244]
[1743323944688,0.7418013,83321.0,83320.0,1.56164]
[1743323944865,0.7418013,83321.0,83320.0,1.92244]
[1743323946051,0.7418013,83321.0,83320.0,1.56164]
[1743323946255,0.7418013,83321.0,83320.0,1.92244]
[1743323948761,0.7418013,83321.0,83320.0,0.39244]
[1743323949062,0.1200542,83319.0,83318.0,0.21499305]
[1743323949256,0.2367342,83319.0,83318.0,0.21563305]
[1743323952467,0.2367342,83319.0,83318.0,0.00064]
[1743323952667,0.12006,83315.0,83314.0,0.0326]
[1743323952867,0.12094,83315.0,83314.0,0.03332]
[1743323953464,0.21414,83315.0,83314.0,0.03332]
[1743323953869,0.21414,83315.0,83314.0,0.03432]
[1743323954167,0.21414,83315.0,83314.0,0.0346]
[1743323954363,0.21414,83315.0,83314.0,0.03524]
[1743323956468,0.21414,83315.0,83314.0,0.06804]
[1743323959071,0.21414,83315.0,83314.0,0.0674]
[1743323959274,0.21414,83315.0,83314.0,0.06804]
[1743323959769,0.21414,83315.0,83314.0,0.0674]
[1743323959975,0.21414,83315.0,83314.0,0.0682]
[1743323962969,0.21414,83315.0,83314.0,0.0674]
[1743323963163,0.21414,83315.0,83314.0,0.06804]
[1743323967965,0.18274,83315.0,83314.0,0.0674]
[1743323968378,0.18274,83315.0,83314.0,0.06804]
[1743323969177,0.18274,83315.0,83314.0,0.0674]
[1743323969478,0.18274,83315.0,83314.0,0.06804]
[1743323971478,0.15164,83315.0,83314.0,0.06804]
[1743323972468,0.12094,83315.0,83314.0,0.1881014]
[1743323973077,0.12094,83315.0,83314.0,1.6881014]
[1743323973781,0.12094,83315.0,83314.0,1.70341238]
[1743323975474,0.12094,83315.0,83314.0,1.58335098]
[1743323975876,0.12094,83315.0,83314.0,1.94415098]
[1743323976382,0.12094,83315.0,83314.0,2.06421238]
[1743323977186,0.12094,83315.0,83314.0,2.06420065]
[1743323977969,0.12094,83315.0,83314.0,2.1591323]
[1743323978783,0.12094,83315.0,83314.0,2.26389445]
[1743323979382,0.12094,83315.0,83314.0,2.14383305]
[1743323980084,0.12094,83315.0,83314.0,0.76389445]
[1743323980684,0.12094,83315.0,83314.0,0.76289445]
[1743323980870,0.12094,83315.0,83314.0,0.40209445]
[1743323981376,0.12094,83315.0,83314.0,0.76189445]
[1743323981976,0.12094,83315.0,83314.0,0.40109445]
[1743323982178,0.12094,83315.0,83314.0,0.76189445]
[1743323982885,0.12006,83315.0,83314.0,0.76189445]
[1743323983383,0.12006,83315.0,83314.0,0.64183305]
[1743323983587,0.0311,83316.0,83314.0,0.76189445]
[1743323983886,0.0600214,83327.0,83314.0,0.76189445]
[1743323983887,0.1200551,83319.0,83318.0,0.0600272]
[1743323984082,0.1208551,83319.0,83318.0,0.0606672]
[1743323984481,0.1208551,83319.0,83318.0,0.1563672]
[1743323984683,0.1208551,83319.0,83318.0,0.45714]
[1743323984984,0.1208551,83319.0,83318.0,0.09634]
[1743323985184,0.1208551,83319.0,83318.0,0.45714]
[1743323986376,0.1218551,83319.0,83318.0,0.45714]
[1743323987384,0.1228551,83319.0,83318.0,0.45714]
[1743323987589,0.1864551,83319.0,83318.0,0.45714]
[1743323992293,0.1864551,83319.0,83318.0,0.09634]
[1743323992486,0.1864551,83319.0,83318.0,0.45714]
[1743323993188,0.1864551,83319.0,83318.0,0.09634]
[1743323993394,0.1864551,83319.0,83318.0,0.45714]
[1743323993796,0.1864551,83319.0,83318.0,0.09634]
[1743323993994,0.1864551,83319.0,83318.0,0.45714]
[1743323994989,0.1864551,83319.0,83318.0,0.42514]
[1743323995393,0.1864551,83319.0,83318.0,0.39444]
[1743323996592,0.1864551,83319.0,83318.0,0.42574]
[1743323998296,0.1864551,83319.0,83318.0,0.39444]
[1743323999786,0.1864551,83319.0,83318.0,0.03364]
[1743323999986,0.1864551,83319.0,83318.0,0.39444]
[1743324000490,0.1864551,83319.0,83318.0,0.36144]
[1743324001392,0.1864551,83319.0,83318.0,0.03114]
[1743324001587,0.1864551,83319.0,83318.0,0.39194]
[1743324004894,0.1864551,83319.0,83318.0,0.03114]
[1743324005101,0.1864551,83319.0,83318.0,0.0305]
[1743324005401,0.1864551,83319.0,83318.0,0.3913]
[1743324005600,0.1864551,83319.0,83318.0,0.39202]
[1743324006195,0.1864551,83319.0,83318.0,0.03122]
[1743324006485,0.1864551,83319.0,83318.0,0.3913]
[1743324006685,0.1864551,83319.0,83318.0,0.39194]
[1743324009098,0.1864551,83319.0,83318.0,0.36144]
[1743324009692,0.1864551,83319.0,83318.0,0.00064]
[1743324009901,0.1200643,83312.0,83311.0,0.21499305]
[1743324010103,0.12102431,83312.0,83311.0,0.21567305]
[1743324010704,0.18412431,83312.0,83311.0,0.21567305]
[1743324011099,0.18412431,83312.0,83311.0,0.21667305]
[1743324012711,0.18412431,83312.0,83311.0,0.24667305]
[1743324013510,0.18412431,83312.0,83311.0,0.03168]
[1743324013702,0.18412431,83312.0,83311.0,0.031]
[1743324018305,0.18412431,83312.0,83311.0,0.03164]
[1743324018507,0.18412431,83312.0,83311.0,0.031]
[1743324022006,0.18412431,83312.0,83311.0,0.001]
[1743324027418,0.18412431,83312.0,83311.0,0.0329]
[1743324035207,0.18412431,83312.0,83311.0,0.0649]
[1743324035818,0.73789431,83312.0,83311.0,0.0649]
[1743324045124,0.73789431,83312.0,83311.0,0.0329]
[1743324054719,0.85241431,83312.0,83311.0,0.0329]
[1743324060326,0.82161431,83312.0,83311.0,0.0329]
[1743324060722,0.70709431,83312.0,83311.0,0.0329]
[1743324060922,0.82149431,83312.0,83311.0,0.0329]
[1743324062934,0.70709431,83312.0,83311.0,0.0329]
[1743324063137,0.67479431,83312.0,83311.0,0.03354]
[1743324063517,0.67479431,83312.0,83311.0,1.53354]
[1743324066832,0.70609431,83312.0,83311.0,1.53354]
[1743324068031,0.70609431,83312.0,83311.0,0.03354]
[1743324070140,0.70609431,83312.0,83311.0,0.0329]
[1743324070331,0.88613384,83312.0,83311.0,0.0329]
[1743324075943,0.88613384,83312.0,83311.0,0.0639]
[1743324076432,0.88613384,83312.0,83311.0,0.0968]
[1743324078648,0.70609431,83312.0,83311.0,0.0968]
[1743324078843,0.67479431,83312.0,83311.0,0.0968]
[1743324079056,0.55473001,83312.0,83311.0,0.5776657]
[1743324079237,0.55473001,83312.0,83311.0,0.5783057]
[1743324079638,0.55473001,83312.0,83311.0,2.0783057]
[1743324080044,0.67479431,83312.0,83311.0,2.0783057]
[1743324083246,0.67479431,83312.0,83311.0,2.29329875]
[1743324083446,0.67479431,83312.0,83311.0,2.70979875]
[1743324086242,0.67479431,83312.0,83311.0,2.4948057]
[1743324087851,0.6738343,83312.0,83311.0,2.4948057]
[1743324088646,0.6738343,83312.0,83311.0,2.1340057]
[1743324088848,0.67479431,83312.0,83311.0,2.4948057]
[1743324089051,0.6738343,83312.0,83311.0,2.4948057]
[1743324093455,0.67479431,83312.0,83311.0,2.4948057]
[1743324093648,0.6738343,83312.0,83311.0,2.4948057]
[1743324099751,0.55377,83312.0,83311.0,2.4948057]
[1743324100349,0.58537,83312.0,83311.0,2.4948057]
[1743324101449,0.58537,83312.0,83311.0,2.1340057]
[1743324101659,0.58641001,83312.0,83311.0,2.4948057]
[1743324101854,0.58537,83312.0,83311.0,2.4948057]
[1743324102761,0.58637,83312.0,83311.0,2.4948057]
[1743324103362,0.58633001,83312.0,83311.0,2.4948057]
[1743324103954,0.58633001,83312.0,83311.0,2.1340057]
[1743324104154,0.58633001,83312.0,83311.0,2.4948057]
[1743324104354,0.58537,83312.0,83311.0,2.4948057]
[1743324104863,0.58537,83312.0,83311.0,2.1340057]
[1743324105064,0.58633001,83312.0,83311.0,2.4948057]
[1743324105263,0.58537,83312.0,83311.0,2.4948057]
[1743324105658,0.34397969,83312.0,83311.0,2.85979875]
[1743324105854,0.34397969,83312.0,83311.0,3.22059875]
[1743324108656,0.34397969,83312.0,83311.0,3.0056057]
[1743324109780,0.34397969,83312.0,83311.0,2.2840057]
[1743324109980,0.34397969,83312.0,83311.0,3.0056057]
[1743324112383,0.34397969,83312.0,83311.0,2.8556057]
[1743324113393,0.34397969,83312.0,83311.0,3.0056057]
[1743324119589,0.34397969,83312.0,83311.0,2.2840057]
[1743324119793,0.34397969,83312.0,83311.0,3.0056057]
[1743324120200,0.34397969,83312.0,83311.0,3.44405521]
[1743324120999,0.16387685,83312.0,83311.0,3.44405521]
[1743324121392,0.16387685,83312.0,83311.0,2.72245521]
[1743324121696,0.16387685,83312.0,83311.0,3.44405521]
[1743324122094,0.16387685,83312.0,83311.0,3.40813521]
[1743324122693,0.16387685,83312.0,83311.0,3.04733521]
[1743324122903,0.16387685,83312.0,83311.0,3.40813521]
[1743324125091,0.19717685,83312.0,83311.0,3.40813521]
[1743324126293,0.19717685,83312.0,83311.0,2.9696857]
[1743324126495,0.19717685,83312.0,83311.0,2.2480857]
[1743324126896,0.19717685,83312.0,83311.0,2.9696857]
[1743324127399,0.19717685,83312.0,83311.0,2.2480857]
[1743324127597,0.19717685,83312.0,83311.0,2.9696857]
[1743324128703,0.19717685,83312.0,83311.0,2.2480857]
[1743324129101,0.19717685,83312.0,83311.0,2.9696857]
[1743324130300,0.22767685,83312.0,83311.0,2.9696857]
[1743324130699,0.22767685,83312.0,83311.0,2.9367857]
[1743324131206,0.22767685,83312.0,83311.0,2.2151857]
[1743324131407,0.22767685,83312.0,83311.0,2.9367857]
[1743324132296,0.22767685,83312.0,83311.0,2.9366257]
[1743324134900,0.22767685,83312.0,83311.0,2.2150257]
[1743324135296,0.22767685,83312.0,83311.0,2.9366257]
[1743324136110,0.22767685,83312.0,83311.0,2.9056257]
[1743324136607,0.22767685,83312.0,83311.0,2.1840257]
[1743324136806,0.22767685,83312.0,83311.0,2.9056257]
[1743324137008,0.22767685,83312.0,83311.0,3.33603857]
[1743324138009,0.22767685,83312.0,83311.0,2.61443857]
[1743324138214,0.22767685,83312.0,83311.0,3.33603857]
[1743324141108,0.22767685,83312.0,83311.0,2.61443857]
[1743324141311,0.22767685,83312.0,83311.0,3.33603857]
[1743324143208,0.22767685,83312.0,83311.0,2.61443857]
[1743324143407,0.22767685,83312.0,83311.0,3.33603857]
[1743324144914,0.22767685,83312.0,83311.0,3.36783857]
[1743324145217,0.22767685,83312.0,83311.0,2.64623857]
[1743324145518,0.22767685,83312.0,83311.0,3.36783857]
[1743324147109,0.19717685,83312.0,83311.0,3.36783857]
[1743324147412,0.16387685,83312.0,83311.0,3.39873857]
[1743324147611,0.16387685,83312.0,83311.0,3.44480657]
[1743324150119,0.16387685,83312.0,83311.0,2.72320657]
[1743324150418,0.16387685,83312.0,83311.0,3.39873857]
[1743324151028,0.16387685,83312.0,83311.0,2.7232216]
[1743324151213,0.16387685,83312.0,83311.0,2.67713857]
[1743324151425,0.16387685,83312.0,83311.0,3.39873857]
[1743324151622,0.16387685,83312.0,83311.0,3.44482685]
[1743324152319,0.16387685,83312.0,83311.0,3.39873857]
[1743324152521,0.16387685,83312.0,83311.0,3.91542187]
[1743324152911,0.16387685,83312.0,83311.0,3.19382187]
[1743324153110,0.16387685,83312.0,83311.0,3.91542187]
[1743324154520,0.16387685,83312.0,83311.0,3.96150946]
[1743324155116,0.16387685,83312.0,83311.0,3.23990946]
[1743324155318,0.16387685,83312.0,83311.0,3.91542187]
[1743324156223,0.16387685,83312.0,83311.0,3.19382187]
[1743324156424,0.16387685,83312.0,83311.0,3.91542187]
[1743324156924,0.16387685,83312.0,83311.0,3.19382187]
[1743324157113,0.16387685,83312.0,83311.0,3.91542187]
[1743324157716,0.16387685,83312.0,83311.0,3.88452187]
[1743324158419,0.16387685,83312.0,83311.0,3.85272187]
[1743324159016,0.19587685,83312.0,83311.0,3.85272187]
[1743324161826,0.19587685,83312.0,83311.0,3.70690187]
[1743324162019,0.19587685,83312.0,83311.0,3.82082187]
[1743324165329,0.19587685,83312.0,83311.0,3.83252277]
[1743324166126,0.19587685,83312.0,83311.0,3.390409]
[1743324168629,0.19587685,83312.0,83311.0,3.40231505]
[1743324169529,0.19587685,83312.0,83311.0,2.88563175]
[1743324169929,0.19587685,83312.0,83311.0,2.16403175]
[1743324170136,0.19587685,83312.0,83311.0,2.88563175]
[1743324170427,0.19587685,83312.0,83311.0,2.8737257]
[1743324171224,0.19587685,83312.0,83311.0,2.1521257]
[1743324171425,0.19587685,83312.0,83311.0,2.8737257]
[1743324172325,0.19587685,83312.0,83311.0,2.1521257]
[1743324172526,0.19587685,83312.0,83311.0,2.8737257]
[1743324174131,0.19587685,83312.0,83311.0,2.1521257]
[1743324174632,0.19587685,83312.0,83311.0,2.8737257]
[1743324175024,0.19587685,83312.0,83311.0,3.16015953]
[1743324177235,0.19587685,83312.0,83311.0,2.43855953]
[1743324177429,0.19587685,83312.0,83311.0,3.16015953]
[1743324178032,0.19587685,83312.0,83311.0,2.8737257]
[1743324178825,0.19587685,83312.0,83311.0,2.1521257]
[1743324179033,0.19587685,83312.0,83311.0,2.8737257]
[1743324180034,0.19587685,83312.0,83311.0,2.1521257]
[1743324180329,0.19587685,83312.0,83311.0,2.1830257]
[1743324180528,0.19587685,83312.0,83311.0,2.9046257]
[1743324181936,0.19587685,83312.0,83311.0,2.1830257]
[1743324182135,0.19587685,83312.0,83311.0,2.9046257]
[1743324182931,0.19587685,83312.0,83311.0,2.1830257]
[1743324183337,0.19587685,83312.0,83311.0,2.9046257]
[1743324184538,0.19587685,83312.0,83311.0,2.1830257]
[1743324184728,0.19587685,83312.0,83311.0,2.9046257]
[1743324185128,0.19587685,83312.0,83311.0,2.1830257]
[1743324185336,0.19587685,83312.0,83311.0,2.9046257]
[1743324185934,0.19587685,83312.0,83311.0,3.19105953]
[1743324187439,0.31594115,83312.0,83311.0,3.07713953]
[1743324188939,0.31594115,83312.0,83311.0,2.66063953]
[1743324189135,0.31594115,83312.0,83311.0,2.3742057]
[1743324189340,0.31594115,83312.0,83311.0,2.0134057]
[1743324196139,0.31594115,83312.0,83311.0,2.30016905]
[1743324198944,0.31594115,83312.0,83311.0,2.0134057]
[1743324199542,0.31594115,83312.0,83311.0,2.0437057]
[1743324201050,0.31594115,83312.0,83311.0,2.4045057]
[1743324203143,0.31594115,83312.0,83311.0,1.6829057]
[1743324203452,0.31594115,83312.0,83311.0,2.4045057]
[1743324207254,0.31594115,83312.0,83311.0,1.6829057]
[1743324207743,0.31594115,83312.0,83311.0,2.4045057]
[1743324208146,0.31594115,83312.0,83311.0,1.6829057]
[1743324208346,0.31594115,83312.0,83311.0,2.4045057]
[1743324209154,0.31594115,83312.0,83311.0,1.6829057]
[1743324209355,0.31594115,83312.0,83311.0,2.4045057]